bitfinex/quotes_ETHUSD_20250724
["timestamp","ask_amount","ask_price","bid_price","bid_amount"]
[1753357326208,1e-08,3655.9,3655.8,25.45065218]
[1753357326412,1e-08,3655.9,3655.8,22.93192918]
[1753357326631,1e-08,3655.9,3655.8,21.38289318]
[1753357326830,1e-08,3655.9,3655.8,24.0682818]
[1753357326998,1e-08,3655.9,3655.8,22.6252168]
[1753357328116,1e-08,3655.9,3655.8,22.6567168]
[1753357328303,1e-08,3655.9,3655.8,24.2997168]
[1753357328710,1e-08,3655.9,3655.8,21.5905838]
[1753357328926,1e-08,3655.9,3655.8,36.9340088]
[1753357329105,1e-08,3655.9,3655.8,33.2733558]
[1753357329301,1e-08,3655.9,3655.8,23.66664001]
[1753357329600,1e-08,3655.9,3655.8,27.87664001]
[1753357336860,1e-08,3655.9,3655.8,27.73784001]
[1753357337014,0.04,3656.9,3656.8,6.28463137]
[1753357337211,0.04,3656.9,3656.8,14.94457551]
[1753357337466,0.9846,3656.9,3656.8,6.94263137]
[1753357337609,0.9846,3656.9,3656.8,5.73463137]
[1753357337610,0.04,3656.9,3656.8,5.73463137]
[1753357337810,0.9846,3656.9,3656.8,10.49263137]
[1753357338010,0.5123,3656.9,3656.8,10.49263137]
[1753357339244,0.04,3656.9,3656.8,10.49263137]
[1753357339432,0.04,3656.9,3656.8,11.89622602]
[1753357341259,0.04,3656.9,3656.8,7.68822602]
[1753357341431,0.95,3656.9,3656.8,10.49163137]
[1753357341635,1.7529,3656.9,3656.8,10.49163137]
[1753357343355,1.7529,3656.9,3656.8,6.28463137]
[1753357343556,1.7529,3656.9,3656.8,10.49163137]
[1753357344020,1.7529,3656.9,3656.8,6.28463137]
[1753357344220,1.7529,3656.9,3656.8,10.49163137]
[1753357345354,0.04,3656.9,3656.8,11.81426602]
[1753357345666,0.4777,3656.9,3656.8,11.81426602]
[1753357346156,0.04,3656.9,3656.8,11.81426602]
[1753357346753,0.95,3656.9,3656.8,7.74406602]
[1753357346923,0.95,3656.9,3656.8,10.62843137]
[1753357348826,0.9493,3656.9,3656.8,10.62843137]
[1753357350859,0.04,3656.9,3656.8,10.62843137]
[1753357354572,0.042,3656.9,3656.8,10.62843137]
[1753357355870,0.042,3656.9,3656.8,14.91843137]
[1753357357570,0.4797,3656.9,3656.8,14.91743137]
[1753357361787,0.9513,3656.9,3656.8,14.91643137]
[1753357364573,0.4797,3656.9,3656.8,14.91643137]
[1753357365863,0.042,3656.9,3656.8,14.91643137]
[1753357366278,0.042,3656.9,3656.8,16.72585602]
[1753357369389,0.9513,3656.9,3656.8,14.91643137]
[1753357369783,0.4797,3656.9,3656.8,10.71143137]
[1753357369989,0.4797,3656.9,3656.8,14.91643137]
[1753357370603,0.042,3656.9,3656.8,14.91543137]
[1753357370806,0.38402187,3656.9,3656.8,10.71143137]
[1753357371107,0.85562187,3656.9,3656.8,14.91543137]
[1753357371609,0.80562187,3656.9,3656.8,14.91543137]
[1753357371771,0.04,3657.9,3657.2,3.28433227]
[1753357371972,0.04,3657.9,3657.8,17.54469875]
[1753357371973,1e-08,3657.9,3657.8,17.54469875]
[1753357372167,1e-08,3658.4,3658.3,6.2835101]
[1753357372419,1e-08,3658.4,3658.3,16.63715926]
[1753357372715,1e-08,3658.4,3658.3,18.41765926]
[1753357372869,0.41923427,3659.9,3658.7,0.55]
[1753357373075,0.41923427,3659.9,3659.8,2.73238974]
[1753357373270,0.41923427,3659.9,3659.8,6.93638974]
[1753357373482,1.34293427,3659.9,3659.7,2.73244403]
[1753357373674,0.41923427,3659.9,3659.8,4.204]
[1753357374406,1.34293427,3659.9,3658.7,0.13619108]
[1753357374576,1.34293427,3659.9,3659.1,3.0]
[1753357374577,2.73238974,3659.8,3659.1,3.0]
[1753357374771,0.9237,3659.7,3658.8,2.73306711]
[1753357374971,1.7387,3659.6,3658.9,4.204]
[1753357375176,1.7387,3659.6,3658.5,3.0]
[1753357375177,3.5475735,3659.6,3659.0,4.203]
[1753357375416,3.65636632,3659.5,3658.4,0.55]
[1753357375713,0.9237,3659.5,3658.6,3.55]
[1753357375874,0.4521,3659.4,3658.8,3.55]
[1753357376074,0.4521,3659.4,3658.9,6.96334038]
[1753357376276,0.9237,3659.4,3659.1,2.73287734]
[1753357376494,0.9237,3659.4,3659.2,4.203]
[1753357376826,1.2671,3659.6,3659.2,4.203]
[1753357376990,0.9237,3659.5,3659.2,4.203]
[1753357377195,0.9237,3659.5,3658.8,3.55]
[1753357377196,0.9237,3659.4,3658.8,3.55]
[1753357377512,0.9237,3659.3,3658.9,4.203]
[1753357377980,2.73263072,3659.5,3658.9,0.55]
[1753357378184,0.9237,3659.2,3659.0,6.93597464]
[1753357378415,0.9237,3659.2,3659.1,4.203]
[1753357378743,0.4521,3659.4,3659.1,4.203]
[1753357379028,0.85205736,3659.4,3659.1,4.203]
[1753357379234,0.815,3659.6,3659.1,4.203]
[1753357379537,0.815,3659.6,3659.1,6.93590455]
[1753357379722,0.9148,3659.5,3659.1,4.203]
[1753357379915,0.815,3659.6,3659.1,4.203]
[1753357380086,0.9148,3659.4,3659.1,6.93591122]
[1753357380421,0.815,3659.6,3659.1,4.203]
[1753357380626,0.9148,3659.5,3659.1,4.203]
[1753357380831,0.4627,3659.4,3659.1,4.203]
[1753357381141,0.9148,3659.4,3659.1,6.9358975]
[1753357381831,0.4521,3659.3,3659.0,2.73296405]
[1753357382031,0.4521,3659.3,3659.1,4.203]
[1753357382032,0.9148,3659.2,3659.1,4.203]
[1753357382437,1.29323119,3659.2,3659.1,4.203]
[1753357382737,1.29323119,3659.2,3658.8,0.1368]
[1753357382911,1.8738,3659.1,3658.9,4.203]
[1753357383113,0.9148,3659.0,3658.9,7.203]
[1753357383502,2.7331331,3658.9,3658.3,2.93848039]
[1753357383708,2.7331331,3658.9,3658.0,2.73373016]
[1753357383709,0.9148,3658.8,3658.4,10.07320784]
[1753357383908,0.9148,3658.8,3658.5,4.203]
[1753357384109,0.9148,3658.8,3658.6,4.202]
[1753357384110,0.9148,3658.7,3658.6,4.202]
[1753357384299,0.1368,3658.6,3658.3,0.20685228]
[1753357384501,0.1368,3658.6,3657.9,2.73378451]
[1753357384502,4.40376351,3658.5,3658.0,0.1368]
[1753357384821,4.40376351,3658.5,3658.1,4.202]
[1753357384822,0.9148,3658.4,3658.1,4.202]
[1753357385014,0.9148,3658.3,3658.2,3.0]
[1753357385311,0.9148,3658.3,3658.2,7.202]
[1753357385925,0.7556,3658.5,3658.2,7.202]
[1753357385926,0.9148,3658.8,3658.2,4.40936495]
[1753357386129,1.49347162,3658.8,3658.3,0.1368]
[1753357386316,0.1368,3658.8,3658.3,0.1368]
[1753357386515,0.9148,3658.7,3658.3,2.87027312]
[1753357386720,0.1368,3658.8,3658.4,2.73342556]
[1753357386943,0.9148,3658.6,3658.5,4.202]
[1753357387243,0.9148,3658.6,3658.5,4.203]
[1753357387439,0.1368,3658.8,3658.5,6.93636066]
[1753357387738,0.1368,3658.8,3658.2,0.20736495]
[1753357387739,0.7948,3658.6,3658.2,0.20736495]
[1753357387905,1.0516,3658.5,3657.8,0.1368]
[1753357388106,1.0516,3658.5,3657.3,4.42628781]
[1753357388107,0.1368,3658.1,3657.6,0.1368]
[1753357388307,3.64854159,3658.0,3657.6,0.1368]
[1753357388641,0.1368,3657.8,3657.5,4.203]
[1753357389006,0.1368,3657.8,3657.5,6.93710437]
[1753357389211,0.9148,3657.7,3657.5,6.93710437]
[1753357389532,0.9148,3657.6,3657.5,4.203]
[1753357389721,0.9148,3657.6,3657.5,6.93710799]
[1753357390122,0.9148,3657.6,3657.5,4.203]
[1753357390322,0.9148,3657.6,3657.5,6.93710799]
[1753357390749,0.9148,3657.6,3657.5,4.203]
[1753357391475,0.9148,3657.6,3657.5,4.40432727]
[1753357392033,1.10141,3657.6,3657.5,0.20132727]
[1753357392246,1.8782,3657.6,3657.1,6.97739474]
[1753357392488,0.9148,3657.5,3657.1,6.97739474]
[1753357392641,0.9148,3657.4,3657.1,4.243]
[1753357392979,0.9148,3657.3,3657.1,4.243]
[1753357393135,0.9148,3657.2,3657.1,4.243]
[1753357393483,0.4627,3657.2,3657.1,4.243]
[1753357393684,0.9148,3657.2,3657.1,0.24717325]
[1753357393968,1.0516,3657.2,3657.1,0.24717325]
[1753357395073,0.1368,3657.2,3657.1,0.24717325]
[1753357395282,1.8225,3657.2,3657.1,0.24717325]
[1753357395636,0.7709,3657.2,3657.1,0.24717325]
[1753357395971,0.1368,3657.3,3657.1,2.98153594]
[1753357396299,0.1368,3657.3,3657.2,2.73433227]
[1753357396438,0.1368,3657.3,3657.1,2.98155759]
[1753357396637,0.1368,3657.3,3657.1,0.24717325]
[1753357397170,0.1368,3657.3,3657.1,2.9815615]
[1753357397355,0.7898,3657.5,3657.1,0.24717325]
[1753357397677,0.9266,3657.5,3657.2,2.7343089]
[1753357398438,0.9266,3657.5,3657.1,0.24817325]
[1753357398978,1.3787,3657.5,3657.1,0.24817325]
[1753357399173,0.9266,3657.5,3657.1,0.24817325]
[1753357399390,0.9148,3657.4,3657.1,2.98257581]
[1753357399751,0.9148,3657.4,3657.2,2.73431971]
[1753357399959,0.7987,3658.8,3657.5,0.55]
[1753357400167,0.9355,3658.8,3658.2,2.8703223]
[1753357400370,3.53204105,3658.6,3657.3,3.8112]
[1753357400568,0.1368,3658.2,3657.7,2.87069546]
[1753357400775,1.0667,3658.2,3657.9,2.73375052]
[1753357400972,1.0667,3658.2,3658.0,2.73372571]
[1753357401155,0.5995,3658.2,3657.8,6.94285852]
[1753357401360,0.4672,3658.1,3657.8,4.209]
[1753357401559,0.4672,3658.1,3657.8,6.94286678]
[1753357401845,0.4627,3658.0,3657.7,0.1368]
[1753357402183,0.4627,3658.0,3657.4,0.55]
[1753357402184,0.1368,3657.8,3657.5,4.214]
[1753357402399,0.9299,3657.7,3657.5,4.214]
[1753357402891,0.7694,3657.5,3657.4,2.73417983]
[1753357403113,0.7694,3657.5,3657.4,6.94718275]
[1753357403324,1.2366,3657.5,3657.4,6.94718275]
[1753357403607,0.7694,3657.5,3657.4,6.94718275]
[1753357404398,0.7694,3657.5,3657.4,4.213]
[1753357404576,0.7694,3657.5,3657.4,6.94718275]
[1753357407090,1.4355,3657.8,3657.4,6.94718275]
[1753357407303,1.643569,3657.8,3657.5,2.73410799]
[1753357407613,2.106269,3657.8,3657.7,2.73395849]
[1753357408003,0.1368,3657.8,3657.7,8.74345849]
[1753357408203,0.1368,3658.4,3658.3,2.73350081]
[1753357408513,0.8224,3658.6,3658.4,2.73341197]
[1753357408723,0.1368,3658.5,3658.4,2.73341197]
[1753357408906,0.27944,3658.5,3658.4,2.73341197]
[1753357410187,0.1368,3658.5,3658.4,2.73341197]
[1753357411039,1.249,3658.9,3658.7,2.73320198]
[1753357411205,0.76,3658.9,3658.8,2.73313654]
[1753357411388,0.76,3658.9,3658.7,2.73318813]
[1753357411936,0.76,3658.9,3658.4,4.208]
[1753357411937,0.1368,3658.8,3658.6,2.73326204]
[1753357412141,0.1368,3658.8,3658.7,2.73321124]
[1753357412287,0.76,3658.9,3658.7,2.73321124]
[1753357412488,0.8968,3658.9,3658.8,2.73313654]
[1753357412727,0.8968,3658.9,3658.7,2.73318845]
[1753357412931,0.8968,3658.9,3658.8,2.73313654]
[1753357413831,0.8968,3658.9,3658.4,4.3448]
[1753357414187,0.9562,3658.8,3658.6,2.73322565]
[1753357414388,0.9562,3658.8,3658.7,2.73321124]
[1753357414728,0.8968,3658.9,3658.5,2.73336066]
[1753357414903,0.8968,3658.9,3658.4,4.3448]
[1753357414904,0.8968,3658.9,3658.8,2.73313654]
[1753357415107,1.0821,3658.9,3658.8,2.73313654]
[1753357415293,1.0821,3658.9,3658.4,4.3448]
[1753357415294,1.0821,3658.9,3658.7,2.73320288]
[1753357415852,1.5493,3658.9,3658.8,2.73313654]
[1753357416739,0.3221,3658.9,3658.8,2.73313654]
[1753357416944,0.1368,3658.9,3658.8,2.73313654]
[1753357417451,0.7508,3659.2,3658.8,2.73313654]
[1753357417452,0.41858945,3659.6,3658.9,2.73306184]
[1753357417646,0.41923427,3659.9,3659.6,2.73252513]
[1753357417848,0.1368,3659.5,3659.1,0.8322]
[1753357418036,0.1368,3659.5,3659.4,2.73268841]
[1753357418750,0.002,3659.7,3659.6,2.73253907]
[1753357418933,0.1388,3659.7,3659.6,2.73253907]
[1753357420322,0.1388,3659.7,3659.5,2.73258329]
[1753357420650,0.1388,3659.7,3659.6,2.73253907]
[1753357420851,0.1388,3659.7,3659.5,2.73258335]
[1753357421022,0.606,3659.7,3659.4,2.73266388]
[1753357421223,0.17790343,3659.6,3659.4,2.73267824]
[1753357421425,0.17790343,3659.6,3659.5,2.73261374]
[1753357422231,0.17790343,3659.6,3659.3,0.20642069]
[1753357422436,0.64510343,3659.6,3659.5,4.203]
[1753357422752,0.17790343,3659.6,3659.5,6.93561374]
[1753357422920,0.31470343,3659.6,3659.5,6.93561374]
[1753357423125,0.17790343,3659.6,3659.5,6.93561374]
[1753357423352,0.1388,3659.7,3659.6,2.73253907]
[1753357423720,0.1388,3659.7,3659.6,3.18553907]
[1753357424030,0.002,3659.7,3659.6,0.453]
[1753357424566,0.002,3659.7,3659.6,3.18553907]
[1753357427043,0.002,3659.7,3659.5,6.93559763]
[1753357427625,0.4692,3659.7,3659.5,4.203]
[1753357427828,0.37575669,3659.6,3659.5,4.202]
[1753357428156,0.84295669,3659.6,3659.5,4.202]
[1753357428372,1.62385669,3659.6,3659.5,4.202]
[1753357429073,1.62385669,3659.6,3659.3,0.20551821]
[1753357429402,0.1368,3659.4,3659.3,4.202]
[1753357429551,0.1368,3659.4,3659.1,4.202]
[1753357429892,0.604,3659.4,3659.1,4.202]
[1753357430687,0.1368,3659.4,3659.1,4.202]
[1753357432587,0.1368,3659.4,3659.1,4.40874691]
[1753357433397,0.002,3659.7,3659.6,2.73253907]
[1753357433885,0.002,3659.7,3659.5,2.73261011]
[1753357434084,0.002,3659.7,3659.6,0.453]
[1753357436488,0.002,3659.7,3659.4,2.73267095]
[1753357436783,0.002,3659.7,3659.4,0.453]
[1753357436991,0.002,3659.7,3659.4,2.73268087]
[1753357437190,0.002,3659.7,3659.5,0.453]
[1753357438687,0.002,3659.7,3659.4,0.4693]
[1753357438888,0.002,3659.7,3659.5,0.4851]
[1753357439188,0.002,3659.7,3659.2,0.7836]
[1753357439378,0.002,3659.7,3659.3,4.202]
[1753357440151,0.002,3659.7,3659.4,0.4851]
[1753357442013,0.002,3659.7,3659.3,6.93474733]
[1753357442173,0.002,3659.7,3659.4,0.4851]
[1753357442795,0.43931702,3659.7,3659.3,4.202]
[1753357443174,0.43931702,3659.7,3659.3,4.6871]
[1753357443497,0.1368,3659.6,3659.4,0.001]
[1753357444463,0.1368,3659.6,3659.4,2.73368604]
[1753357444795,0.1368,3659.6,3659.4,0.001]
[1753357445506,0.1368,3659.6,3659.4,2.73368373]
[1753357445660,0.1368,3659.6,3659.4,0.001]
[1753357446196,0.1368,3659.6,3659.4,3.21877009]
[1753357446701,0.1368,3659.6,3659.4,0.4861]
[1753357448574,0.1368,3659.6,3659.4,0.001]
[1753357448872,3.50881374,3659.5,3659.4,0.001]
[1753357449074,1.2445,3659.5,3659.4,0.001]
[1753357449665,3.97711374,3659.5,3659.4,0.001]
[1753357450797,1.2445,3659.5,3659.4,0.001]
[1753357451519,3.97711374,3659.5,3659.4,0.001]
[1753357451987,1.2445,3659.5,3659.4,0.001]
[1753357452516,3.97711374,3659.5,3659.4,0.001]
[1753357452820,1.2445,3659.5,3659.4,0.001]
[1753357453319,3.97711374,3659.5,3659.4,0.001]
[1753357454617,1.2445,3659.5,3659.4,0.001]
[1753357454984,3.97711374,3659.5,3659.4,0.001]
[1753357455186,1.2445,3659.5,3659.4,0.001]
[1753357455590,3.97711374,3659.5,3659.4,0.001]
[1753357456007,1.2445,3659.5,3659.4,0.001]
[1753357456930,0.4683,3659.5,3659.4,0.001]
[1753357458644,3.20091374,3659.5,3659.4,0.001]
[1753357459428,0.4683,3659.5,3659.4,0.001]
[1753357459999,3.20091374,3659.5,3659.4,0.001]
[1753357460938,9.39590301,3659.5,3659.4,0.001]
[1753357461440,13.59690301,3659.5,3659.4,0.001]
[1753357462403,8.21541374,3659.5,3659.4,0.001]
[1753357464437,13.12860301,3659.5,3659.4,0.001]
[1753357464733,13.38448133,3659.5,3659.4,0.001]
[1753357466475,13.12860301,3659.5,3659.4,0.001]
[1753357471064,13.26540301,3659.5,3659.4,0.001]
[1753357471657,16.53786897,3659.5,3659.4,0.001]
[1753357471848,12.92623824,3659.5,3659.4,0.001]
[1753357472042,16.53686897,3659.5,3659.4,0.001]
[1753357472245,16.38339195,3659.5,3659.4,0.001]
[1753357473032,16.97275752,3659.5,3659.4,0.001]
[1753357473258,12.77275752,3659.5,3659.4,0.001]
[1753357473466,16.97275752,3659.5,3659.4,0.001]
[1753357476960,17.12622575,3659.5,3659.4,0.001]
[1753357477164,2.7335101,3658.3,3658.2,0.99575868]
[1753357477981,2.7335101,3658.3,3658.2,0.20275868]
[1753357478149,2.7334557,3658.4,3658.2,0.20275868]
[1753357478345,2.7334557,3658.4,3658.0,0.001]
[1753357478568,2.73351771,3658.3,3658.0,0.001]
[1753357478769,2.73346152,3658.4,3658.0,0.001]
[1753357478971,2.73330489,3658.6,3658.0,0.001]
[1753357479170,2.73341822,3658.5,3658.0,0.001]
[1753357479678,2.73336637,3658.5,3658.0,0.20611017]
[1753357479874,2.73330972,3658.6,3658.0,2.7346913]
[1753357480274,5.38148927,3659.3,3658.0,0.001]
[1753357480511,0.002,3659.7,3658.0,0.001]
[1753357480512,2.73309025,3658.9,3658.3,2.73346333]
[1753357480988,2.73302081,3659.0,3658.4,2.73343201]
[1753357481682,0.1368,3658.6,3658.5,2.73336066]
[1753357481984,0.1368,3658.6,3658.4,2.73340172]
[1753357482893,0.1368,3658.6,3658.3,2.73349075]
[1753357483272,0.1368,3658.6,3658.4,2.73343275]
[1753357483592,0.1368,3658.6,3658.3,2.73347685]
[1753357483790,0.1368,3658.6,3658.2,0.8201]
[1753357484292,0.1368,3658.6,3658.2,3.55363784]
[1753357484478,0.1368,3658.6,3658.3,2.73344221]
[1753357484885,0.1368,3658.6,3658.3,2.73348243]
[1753357485288,0.1368,3658.6,3658.4,2.73342827]
[1753357485675,0.1368,3658.6,3658.3,2.73347962]
[1753357485991,0.1368,3658.6,3658.4,0.001]
[1753357487177,0.1368,3658.6,3658.4,2.73441131]
[1753357487909,0.1368,3658.6,3658.4,0.001]
[1753357488701,0.1368,3658.6,3658.4,2.73441745]
[1753357488870,0.1368,3658.6,3658.5,2.73336066]
[1753357490598,0.8306,3659.4,3658.5,0.7614]
[1753357490799,4.199,3659.6,3659.0,2.73291956]
[1753357491010,0.1368,3659.2,3659.1,2.73285158]
[1753357492390,0.1368,3659.2,3659.1,3.52595158]
[1753357492594,0.002,3659.7,3659.6,2.73253907]
[1753357492988,0.1388,3659.7,3659.6,2.73253907]
[1753357494001,0.002,3659.7,3659.6,3.54303907]
[1753357500333,0.1388,3659.7,3659.6,4.197]
[1753357500540,0.1388,3659.7,3659.6,6.92953907]
[1753357502041,0.1388,3659.7,3659.6,2.73253907]
[1753357502245,0.1388,3659.7,3659.6,6.92953907]
[1753357502729,0.002,3659.7,3659.6,6.92953907]
[1753357504079,0.002,3659.7,3659.6,7.72253907]
[1753357508874,0.002,3659.7,3659.5,0.1368]
[1753357509168,0.002,3659.7,3659.6,4.196]
[1753357509375,0.002,3659.7,3659.6,6.92853907]
[1753357509545,0.002,3659.7,3659.6,4.196]
[1753357511341,0.002,3659.7,3659.6,6.92853907]
[1753357511973,0.002,3659.7,3659.6,4.196]
[1753357512555,0.002,3659.7,3659.6,6.92853907]
[1753357513579,0.002,3659.7,3659.6,2.73253907]
[1753357513741,0.002,3659.7,3659.6,4.195]
[1753357514659,0.002,3659.7,3659.6,6.92753907]
[1753357514978,0.002,3659.7,3659.5,2.7325846]
[1753357515177,0.002,3659.7,3659.6,6.92753907]
[1753357516681,0.002,3659.7,3659.6,4.195]
[1753357517566,0.002,3659.7,3659.4,0.20351737]
[1753357517896,2.73451237,3659.7,3659.0,0.7864]
[1753357518096,0.1368,3659.5,3659.2,2.73279239]
[1753357518290,0.1368,3659.5,3659.3,4.195]
[1753357518621,2.73268841,3659.4,3659.0,1.12525429]
[1753357518821,0.1368,3659.2,3659.1,4.195]
[1753357519372,0.1368,3659.2,3658.9,2.7330455]
[1753357519579,0.1368,3659.2,3659.0,4.195]
[1753357521725,0.1368,3659.2,3658.9,0.20519153]
[1753357521726,2.73291246,3659.1,3658.9,0.20519153]
[1753357521870,2.73333926,3658.6,3658.0,0.001]
[1753357522069,0.1368,3658.5,3658.2,4.195]
[1753357522615,2.87016066,3658.5,3658.2,4.195]
[1753357522821,0.1368,3658.5,3658.2,4.195]
[1753357522987,0.1368,3659.2,3658.4,10.70995587]
[1753357523175,0.1368,3659.2,3658.8,2.73306278]
[1753357523370,0.1368,3659.2,3658.9,6.92706014]
[1753357523614,0.1368,3659.2,3658.9,4.194]
[1753357523820,0.1368,3659.2,3658.9,6.92705543]
[1753357524116,0.1368,3659.2,3659.0,2.73292797]
[1753357524714,0.1368,3659.2,3658.9,2.73301343]
[1753357525078,0.1368,3659.2,3659.0,2.73298171]
[1753357526117,0.1368,3659.2,3659.1,2.73291246]
[1753357526814,0.1368,3659.2,3659.0,2.73296218]
[1753357527014,0.1368,3659.2,3658.9,2.73300822]
[1753357527530,0.1368,3659.2,3659.0,2.73298191]
[1753357528026,0.1368,3659.2,3659.0,2.73297445]
[1753357528432,0.1368,3659.2,3659.0,2.7329726]
[1753357528726,0.1368,3659.2,3658.6,4.3308]
[1753357529028,0.1368,3659.2,3658.7,2.73319693]
[1753357529193,0.1368,3659.2,3658.9,2.73305899]
[1753357529388,0.1368,3659.2,3658.9,2.73299727]
[1753357529593,0.1368,3659.2,3658.6,0.1368]
[1753357529809,0.1368,3659.2,3659.0,2.73298125]
[1753357530008,0.8033,3659.1,3658.5,4.194]
[1753357530329,0.1368,3658.8,3658.5,2.73336066]
[1753357530690,0.1368,3658.8,3658.4,0.2010462]
[1753357530995,0.8033,3659.1,3658.4,0.2010462]
[1753357530996,2.87016066,3658.5,3658.4,0.2010462]
[1753357531198,0.1368,3658.5,3658.4,0.2010462]
[1753357531739,2.87016066,3658.5,3658.4,0.2010462]
[1753357531898,0.1368,3658.5,3658.4,0.2010462]
[1753357533859,0.1368,3658.5,3658.4,2.93448158]
[1753357534143,0.1368,3658.7,3658.6,2.73328595]
[1753357534644,0.1368,3658.9,3658.5,3.53015807]
[1753357534895,0.1368,3658.9,3658.7,2.7331591]
[1753357535059,0.1368,3658.9,3658.5,3.53013827]
[1753357535405,0.1368,3658.9,3658.5,0.7968]
[1753357535602,6.92719325,3658.8,3658.4,0.2010462]
[1753357535850,2.87016066,3658.5,3658.4,0.2010462]
[1753357536248,0.1368,3658.5,3658.4,0.2010462]
[1753357536537,2.87016066,3658.5,3658.4,0.2010462]
[1753357537134,3.62586066,3658.5,3658.4,0.2010462]
[1753357537347,3.90468331,3658.5,3658.4,0.001]
[1753357538300,9.28617258,3658.5,3658.4,0.001]
[1753357538814,8.09868331,3658.5,3658.4,0.001]
[1753357539636,0.41562265,3658.5,3658.4,0.001]
[1753357539845,4.3308,3658.5,3658.4,0.001]
[1753357540862,7.06416066,3658.5,3658.4,0.001]
[1753357541534,4.3308,3658.5,3658.4,0.001]
[1753357541705,7.06416066,3658.5,3658.4,0.001]
[1753357542302,4.3308,3658.5,3658.4,0.001]
[1753357542543,7.06416066,3658.5,3658.4,0.001]
[1753357544149,7.81616066,3658.5,3658.4,0.001]
[1753357544350,13.19764993,3658.5,3658.4,0.001]
[1753357544642,10.81616066,3658.5,3658.4,0.001]
[1753357546933,10.81616066,3658.5,3658.4,1e-08]
[1753357547132,11.40430289,3658.5,3658.4,1e-08]
[1753357547652,11.40430289,3658.5,3657.4,0.001]
[1753357547653,5.73410799,3657.5,3657.4,1e-08]
[1753357547855,16.23689726,3657.5,3657.4,1e-08]
[1753357550868,16.23689726,3657.5,3656.7,1e-08]
[1753357550869,6.54403137,3656.8,3656.7,1e-08]
[1753357551174,16.25632064,3656.8,3656.7,1e-08]
[1753357552054,16.11952064,3656.8,3656.7,1e-08]
[1753357552758,11.92552064,3656.8,3656.7,1e-08]
[1753357552927,16.12052064,3656.8,3656.7,1e-08]
[1753357553957,5.73470615,3656.7,3656.6,1e-08]
[1753357554135,6.50610615,3656.7,3656.6,1e-08]
[1753357557149,6.50610615,3656.7,3655.2,0.75380001]
[1753357557354,2.73540602,3655.8,3655.2,0.75380001]
[1753357557562,4.195,3655.7,3655.2,0.75380001]
[1753357557766,4.195,3655.6,3655.2,0.75380001]
[1753357558738,3.7714,3656.7,3655.2,0.75380001]
[1753357558944,0.7714,3656.7,3655.2,0.75380001]
[1753357559146,0.7714,3656.7,3655.3,0.61762893]
[1753357559147,3.50612331,3656.7,3655.3,0.61762893]
[1753357559373,8.11567541,3657.4,3655.7,2.73543971]
[1753357559374,2.73499584,3656.4,3655.7,2.73543971]
[1753357559584,4.195,3656.3,3655.7,2.73543971]
[1753357559751,6.93000554,3656.3,3655.5,2.73559118]
[1753357559955,6.93000554,3656.3,3655.7,2.73540685]
[1753357560152,4.195,3656.3,3655.9,3.54329465]
[1753357560363,2.73503742,3656.3,3655.9,0.808]
[1753357560681,2.73389297,3657.8,3655.9,0.35434504]
[1753357560885,0.7562,3657.5,3656.6,2.7347168]
[1753357561207,6.609,3657.9,3657.0,0.808]
[1753357561208,4.195,3657.4,3657.0,0.808]
[1753357561347,2.73410799,3657.5,3657.0,0.808]
[1753357561680,2.73425751,3657.3,3657.0,0.808]
[1753357561860,6.9293875,3657.2,3657.0,0.808]
[1753357562063,0.1368,3657.1,3657.0,0.808]
[1753357562555,4.3318,3657.1,3657.0,0.808]
[1753357562959,0.1368,3657.1,3657.0,0.808]
[1753357563157,4.3318,3657.1,3657.0,0.808]
[1753357563362,7.06620704,3657.1,3657.0,0.808]
[1753357563748,0.1368,3657.1,3656.5,0.8071]
[1753357563948,0.1368,3656.9,3656.5,3.54194944]
[1753357564174,4.195,3656.8,3656.6,2.73477045]
[1753357564368,4.195,3656.8,3656.5,3.54193699]
[1753357564579,0.1368,3656.9,3656.6,2.73477241]
[1753357564882,4.195,3656.7,3656.6,2.73477241]
[1753357565294,4.195,3656.7,3656.5,3.54192599]
[1753357565492,4.195,3656.7,3656.6,2.73478094]
[1753357565690,4.195,3656.7,3656.5,0.8071]
[1753357565691,4.195,3656.7,3656.5,3.54193951]
[1753357566213,4.195,3656.7,3656.6,2.73478094]
[1753357566559,4.195,3656.7,3656.5,3.54194829]
[1753357566905,4.195,3656.8,3656.5,0.7571]
[1753357567063,4.195,3656.8,3656.5,3.4919435]
[1753357567476,2.7347117,3656.7,3656.0,4.29]
[1753357567705,0.1368,3656.5,3656.2,2.73507383]
[1753357567877,4.3318,3656.5,3656.2,2.73507383]
[1753357568722,4.3318,3656.5,3656.3,2.73499216]
[1753357568999,0.7878,3657.2,3655.6,7.02549771]
[1753357569000,2.73434416,3657.2,3656.4,2.73493053]
[1753357569213,0.1368,3656.7,3656.6,2.73476426]
[1753357569415,4.195,3656.9,3656.8,2.73462624]
[1753357569594,4.3318,3656.9,3656.6,2.7347742]
[1753357569914,4.3318,3656.9,3656.6,2.73478094]
[1753357570375,4.3318,3656.9,3656.7,2.73470049]
[1753357570879,4.3318,3656.9,3656.8,2.73463137]
[1753357570880,0.1368,3656.9,3656.8,2.73463137]
[1753357571272,0.1368,3656.9,3656.8,3.48593137]
[1753357571713,4.195,3657.1,3656.8,0.7513]
[1753357571879,4.195,3657.1,3656.9,2.73448309]
[1753357572067,4.195,3657.1,3657.0,2.73448181]
[1753357572260,0.1368,3657.2,3657.1,2.73440704]
[1753357572480,4.3318,3657.2,3657.1,2.73440704]
[1753357572882,4.3318,3657.2,3657.0,2.73446265]
[1753357573114,4.3318,3657.2,3656.8,0.7513]
[1753357573523,4.3308,3657.2,3656.8,0.7513]
[1753357573728,4.3308,3657.2,3656.9,2.73450401]